lending/lending_fUSD_20240410
["ID","MTS","AMOUNT","RATE_DAILY","PERIOD"]
[322066406,1712739052301,-500.0,0.00020999,2]
[322066407,1712739052311,-226.34805994,0.00020999,2]
[322066408,1712739052320,-167.02339553,0.00020999,2]
[322066409,1712739052329,-167.02339553,0.00020999,2]
[322066410,1712739052339,-167.02339553,0.00020999,2]
[322066411,1712739052349,-167.02339553,0.00020999,2]
[322066412,1712739052359,-167.02339553,0.00020999,2]
[322066413,1712739052369,-167.02339553,0.00020999,2]
[322066414,1712739052379,-167.02339553,0.00020999,2]
[322066415,1712739052389,-167.02339553,0.00020999,2]
[322066416,1712739052399,-167.02339553,0.00020999,2]
[322066417,1712739052408,-167.02339553,0.00020999,2]
[322066418,1712739052417,-167.02339553,0.00020999,2]
[322066419,1712739052427,-167.02339553,0.00020999,2]
[322066420,1712739052437,-167.02339553,0.00020999,2]
[322066421,1712739052446,-167.02339553,0.00020999,2]
[322066422,1712739052455,-167.02339553,0.00020999,2]
[322066423,1712739052464,-167.02339553,0.00020999,2]
[322066424,1712739052474,-95616.60226119,0.00021,2]
[322066425,1712739052484,-2012242.92527621,0.00021,2]
[322066426,1712739052493,-714.86624918,0.00021,2]
[322066427,1712739052502,-581.8,0.00021,2]
[322066428,1712739052512,-916.75,0.00021,2]
[322066429,1712739052521,-3789238.58634229,0.00021,2]
[322066430,1712739052530,-1271055.57152931,0.00021,2]
[322066431,1712739052539,-1754381.21367107,0.00021,2]
[322066432,1712739052549,-731061.41250702,0.00021,2]
[322066433,1712739052559,-2000.0,0.00021,2]
[322066434,1712739052570,-1152393.77171008,0.00021,2]
[322066435,1712739052581,-2829437.37998717,0.00021,2]
[322066436,1712739052590,-3163202.04440942,0.00021,2]
[322066437,1712739052599,-302050.46394969,0.00021,2]
[322066438,1712739052609,-1066928.88722922,0.00021,2]
[322066439,1712739052618,-69013.39735045,0.00021,2]
[322066440,1712739052628,-155.0,0.00021,2]
[322066441,1712739052638,-560618.8809155,0.00021,2]
[322066442,1712739052647,-151.0,0.00021,2]
[322066443,1712739052656,-158.396081,0.00021,2]
[322066444,1712739052666,-151.0,0.00021,2]
[322066445,1712739052675,-297.99302,0.00021,2]
[322066446,1712739052685,-151.0,0.00021,2]
[322066447,1712739052696,-151.0,0.00021,2]
[322066448,1712739052705,-151.0,0.00021,2]
[322066449,1712739052714,-229.254524,0.00021,2]
[322066450,1712739052724,-151.0,0.00021,2]
[322066451,1712739052734,-151.0,0.00021,2]
[322066452,1712739052743,-151.0,0.00021,2]
[322066453,1712739052755,-151.0,0.00021,2]
[322066454,1712739052765,-151.0,0.00021,2]
[322066455,1712739052774,-151.0,0.00021,2]
[322066456,1712739052785,-151.0,0.00021,2]
[322066457,1712739052794,-151.0,0.00021,2]
[322066458,1712739052803,-151.0,0.00021,2]
[322066459,1712739052815,-151.0,0.00021,2]
[322066460,1712739052827,-238.777379,0.00021,2]
[322066461,1712739052836,-151.0,0.00021,2]
[322066462,1712739052846,-151.0,0.00021,2]
[322066463,1712739052855,-151.0,0.00021,2]
[322066464,1712739052865,-189.113584,0.00021,2]
[322066465,1712739052874,-151.0,0.00021,2]
[322066466,1712739052884,-151.0,0.00021,2]
[322066467,1712739052894,-151.0,0.00021,2]
[322066468,1712739052903,-151.0,0.00021,2]
[322066469,1712739052913,-151.0,0.00021,2]
[322066470,1712739052923,-151.0,0.00021,2]
[322066471,1712739052932,-151.0,0.00021,2]
[322066472,1712739052943,-151.0,0.00021,2]
[322066473,1712739052953,-151.0,0.00021,2]
[322066474,1712739052962,-151.0,0.00021,2]
[322066475,1712739052972,-151.0,0.00021,2]
[322066476,1712739052981,-151.0,0.00021,2]
[322066477,1712739052991,-151.0,0.00021,2]
[322066478,1712739053000,-151.0,0.00021,2]
[322066479,1712739053010,-151.0,0.00021,2]
[322066480,1712739053019,-162.169881,0.00021,2]
[322066481,1712739053029,-151.0,0.00021,2]
[322066482,1712739053039,-151.0,0.00021,2]
[322066483,1712739053048,-151.0,0.00021,2]
[322066484,1712739053058,-151.0,0.00021,2]
[322066485,1712739053070,-151.0,0.00021,2]
[322066486,1712739053080,-269.422186,0.00021,2]
[322066487,1712739053089,-151.0,0.00021,2]
[322066488,1712739053099,-151.0,0.00021,2]
[322066489,1712739053108,-151.0,0.00021,2]
[322066490,1712739053119,-151.0,0.00021,2]
[322066491,1712739053128,-151.0,0.00021,2]
[322066492,1712739053138,-212.142408,0.00021,2]
[322066493,1712739053148,-151.0,0.00021,2]
[322066494,1712739053158,-151.0,0.00021,2]
[322066495,1712739053167,-151.0,0.00021,2]
[322066496,1712739053176,-151.0,0.00021,2]
[322066497,1712739053186,-151.0,0.00021,2]
[322066498,1712739053195,-151.0,0.00021,2]
[322066499,1712739053205,-151.0,0.00021,2]
[322066500,1712739053215,-151.0,0.00021,2]
[322066501,1712739053224,-151.0,0.00021,2]
[322066502,1712739053234,-151.0,0.00021,2]
[322066503,1712739053243,-178.286,0.00021,2]
[322066504,1712739053253,-250.0,0.00021,3]
[322066505,1712739053262,-299.667677,0.00021,2]
[322066506,1712739053272,-150.0,0.00021,2]
[322066507,1712739053281,-652.83262,0.00021,2]
[322066508,1712739053291,-151.0,0.00021,2]
[322066509,1712739053301,-151.0,0.00021,2]
[322066510,1712739053312,-151.0,0.00021,2]
[322066511,1712739053321,-179.653987,0.00021,2]
[322066512,1712739053331,-151.0,0.00021,2]
[322066513,1712739053340,-151.0,0.00021,2]
[322066514,1712739053350,-151.0,0.00021,2]
[322066515,1712739053359,-151.0,0.00021,2]
[322066516,1712739053369,-151.0,0.00021,2]
[322066517,1712739053379,-151.0,0.00021,2]
[322066518,1712739053388,-151.0,0.00021,2]
[322066519,1712739053398,-151.0,0.00021,2]
[322066520,1712739053407,-151.0,0.00021,2]
[322066521,1712739053417,-151.0,0.00021,2]
[322066522,1712739053426,-151.0,0.00021,2]
[322066523,1712739053435,-151.0,0.00021,2]
[322066524,1712739053445,-151.0,0.00021,2]
[322066525,1712739053454,-151.0,0.00021,2]
[322066526,1712739053464,-151.0,0.00021,2]
[322066527,1712739053473,-151.0,0.00021,2]
[322066528,1712739053482,-151.0,0.00021,2]
[322066529,1712739053491,-151.0,0.00021,2]
[322066530,1712739053501,-151.0,0.00021,2]
[322066531,1712739053511,-151.0,0.00021,2]
[322066532,1712739053521,-151.0,0.00021,2]
[322066533,1712739053530,-151.0,0.00021,2]
[322066534,1712739053539,-151.0,0.00021,2]
[322066535,1712739053549,-151.0,0.00021,2]
[322066536,1712739053561,-157.830178,0.00021,2]
[322066537,1712739053570,-151.0,0.00021,2]
[322066538,1712739053580,-229.13893,0.00021,2]
[322066539,1712739053765,-500.0,0.00021025,2]
[322066540,1712739053781,-500.0,0.00021025,2]
[322066541,1712739053791,-500.0,0.00021025,2]
[322066542,1712739053802,-500.0,0.00021025,2]
[322066543,1712739053812,-500.0,0.00021025,2]
[322066544,1712739053824,-500.0,0.00021025,2]
[322066545,1712739053835,-500.0,0.00021025,2]
[322066546,1712739053845,-500.0,0.00021025,2]
[322066547,1712739053855,-500.0,0.00021025,2]
[322066548,1712739053865,-500.0,0.00021025,2]
[322066549,1712739053875,-500.0,0.00021025,2]
[322066550,1712739053884,-946.69,0.00021025,2]
[322066551,1712739053893,-1419.29,0.00021025,2]
[322066552,1712739053903,-500.0,0.00021025,2]
[322066553,1712739053913,-500.0,0.00021025,2]
[322066554,1712739053923,-500.0,0.00021025,2]
[322066555,1712739053932,-625.16,0.00021025,2]
[322066556,1712739053941,-500.0,0.00021025,2]
[322066557,1712739053951,-1482.35,0.00021025,2]
[322066558,1712739053961,-500.0,0.00021025,2]
[322066559,1712739053971,-500.0,0.00021025,2]
[322066560,1712739053980,-861.14,0.00021025,2]
[322066561,1712739053989,-500.0,0.00021025,2]
[322066562,1712739053998,-500.0,0.00021025,2]
[322066563,1712739054007,-528.57,0.00021025,2]
[322066564,1712739054016,-2120.71,0.00021025,2]
[322066565,1712739054025,-500.0,0.00021025,2]
[322066566,1712739054035,-552.2,0.00021025,2]
[322066567,1712739054044,-500.0,0.00021025,2]
[322066568,1712739054053,-2408.96,0.00021025,2]
[322066569,1712739054063,-1276.57,0.00021025,2]
[322066570,1712739054072,-1217.14,0.00021025,2]
[322066571,1712739054082,-2123.86,0.00021025,2]
[322066572,1712739054091,-511.31,0.00021025,2]
[322066573,1712739054100,-572.02,0.00021025,2]
[322066574,1712739054109,-500.0,0.00021025,2]
[322066575,1712739054118,-742.1,0.00021025,2]
[322066576,1712739054127,-1137.02,0.00021025,2]
[322066577,1712739054136,-500.0,0.00021025,2]
[322066578,1712739054146,-1754.38,0.00021025,2]
[322066579,1712739054158,-500.0,0.00021025,2]
[322066580,1712739054168,-984.81,0.00021025,2]
[322066581,1712739054178,-500.0,0.00021025,2]
[322066582,1712739054187,-500.0,0.00021025,2]
[322066583,1712739054199,-612.58,0.00021025,2]
[322066584,1712739054208,-619.53,0.00021025,2]
[322066585,1712739054219,-500.0,0.00021025,2]
[322066586,1712739054230,-500.0,0.00021025,2]
[322066587,1712739054239,-530.44,0.00021025,2]
[322066588,1712739054249,-1083.32,0.00021025,2]
[322066589,1712739054258,-500.0,0.00021025,2]
[322066590,1712739054267,-765.23,0.00021025,2]
[322066591,1712739054276,-500.0,0.00021025,2]
[322066592,1712739054286,-500.0,0.00021025,2]
[322066593,1712739054295,-1986.39,0.00021025,2]
[322066594,1712739054304,-521.75,0.00021025,2]
[322066595,1712739054314,-500.0,0.00021025,2]
[322066596,1712739054323,-500.0,0.00021025,2]
[322066597,1712739054333,-500.0,0.00021025,2]
[322066598,1712739054342,-500.0,0.00021025,2]
[322066599,1712739054351,-500.0,0.00021025,2]
[322066600,1712739054360,-500.0,0.00021025,2]
[322066601,1712739054370,-774.63,0.00021025,2]
[322066602,1712739054379,-1362.67,0.00021025,2]
[322066603,1712739054388,-500.0,0.00021025,2]
[322066604,1712739054397,-3704.96,0.00021025,2]
[322066605,1712739054407,-500.0,0.00021025,2]
[322066606,1712739054416,-500.0,0.00021025,2]
[322066607,1712739054426,-500.0,0.00021025,2]
[322066608,1712739054435,-500.0,0.00021025,2]
[322066609,1712739054445,-500.0,0.00021025,2]
[322066610,1712739054454,-500.0,0.00021025,2]
[322066611,1712739054463,-513.06,0.00021025,2]
[322066612,1712739054472,-206.54820658,0.00021026,2]
[322066613,1712739054481,-500.0,0.00021026,2]
[322066614,1712739054491,-500.0,0.00021026,2]
[322066615,1712739054500,-500.0,0.00021026,2]
[322066616,1712739054509,-500.0,0.00021026,2]
[322066617,1712739054519,-500.0,0.00021026,2]
[322066618,1712739054528,-500.0,0.00021026,2]
[322066619,1712739054537,-500.0,0.00021026,2]
[322066620,1712739054546,-602.30625515,0.00021026,2]
[322066621,1712739054556,-500.0,0.00021026,2]
[322066622,1712739054566,-570.79,0.00021026,2]
[322066623,1712739054575,-500.0,0.00021026,2]
[322066624,1712739054584,-500.0,0.00021026,2]
[322066625,1712739054594,-500.0,0.00021026,2]
[322066626,1712739054603,-500.0,0.00021026,2]
[322066627,1712739054613,-500.0,0.00021026,2]
[322066628,1712739054622,-500.0,0.00021026,2]
[322066629,1712739054631,-613.93,0.00021026,2]
[322066630,1712739054640,-500.0,0.00021026,2]
[322066631,1712739054649,-500.0,0.00021026,2]
[322066632,1712739054659,-500.0,0.00021026,2]
[322066633,1712739054668,-500.0,0.00021026,2]
[322066634,1712739054677,-373.45600169,0.00021026,2]
[322066635,1712739054686,-578.03,0.00021026,2]
[322066636,1712739054696,-500.0,0.00021026,2]
[322066637,1712739054705,-500.0,0.00021026,2]
[322066638,1712739054714,-934.61,0.00021026,2]
[322066639,1712739054723,-500.0,0.00021026,2]
[322066640,1712739054732,-500.0,0.00021026,2]
[322066641,1712739054742,-150.0,0.00021026,2]
[322066642,1712739054752,-500.0,0.00021026,2]
[322066643,1712739054761,-500.0,0.00021026,2]
[322066644,1712739054771,-419.74675316,0.00021026,2]
[322066645,1712739054780,-616.26,0.00021026,2]
[322066646,1712739054790,-887.99,0.00021026,2]
[322066647,1712739054799,-548.96,0.00021026,2]
[322066648,1712739054808,-500.0,0.00021026,2]
[322066649,1712739054822,-898.59,0.00021026,2]
[322066650,1712739054831,-500.0,0.00021026,2]
[322066651,1712739054840,-500.0,0.00021026,2]
[322066652,1712739054850,-500.0,0.00021026,2]
[322066653,1712739054860,-500.0,0.00021026,2]
[322066654,1712739054870,-711.11,0.00021026,2]
[322066655,1712739054879,-500.0,0.00021026,2]
[322066656,1712739054889,-683.32,0.00021026,2]
[322066657,1712739054898,-500.0,0.00021026,2]
[322066658,1712739054908,-519.48,0.00021026,2]
[322066659,1712739054917,-500.0,0.00021026,2]
[322066660,1712739054926,-500.0,0.00021026,2]
[322066661,1712739054935,-626.89,0.00021026,2]
[322066662,1712739054944,-964.25,0.00021026,2]
[322066663,1712739054953,-500.0,0.00021026,2]
[322066664,1712739054962,-583.05877,0.00021026,2]
[322066665,1712739054971,-500.0,0.00021026,2]
[322066666,1712739054981,-356.13864489,0.00021026,2]
[322066667,1712739054990,-500.0,0.00021026,2]
[322066668,1712739054999,-500.0,0.00021026,2]
[322066669,1712739055008,-500.0,0.00021026,2]
[322066670,1712739055017,-671.33,0.00021026,2]
[322066671,1712739055026,-508.86,0.00021026,2]
[322066672,1712739055035,-500.0,0.00021026,2]
[322066673,1712739055044,-547.4,0.00021026,2]
[322066674,1712739055053,-500.0,0.00021026,2]
[322066675,1712739055062,-500.0,0.00021026,2]
[322066676,1712739055071,-529.97,0.00021026,2]
[322066677,1712739055081,-500.0,0.00021026,2]
[322066678,1712739055090,-291.90349403,0.00021026,2]
[322066679,1712739055099,-565.15,0.00021026,2]
[322066680,1712739055108,-1021.16,0.00021026,2]
[322066681,1712739055118,-887.08,0.00021026,2]
[322066682,1712739055127,-500.0,0.00021026,2]
[322066683,1712739055136,-500.0,0.00021026,2]
[322066684,1712739055145,-500.0,0.00021026,2]
[322066685,1712739055154,-500.0,0.00021026,2]
[322066686,1712739055163,-500.0,0.00021026,2]
[322066687,1712739055173,-513.89,0.00021026,2]
[322066688,1712739055182,-677.27,0.00021026,2]
[322066689,1712739055193,-885.74,0.00021026,2]
[322066690,1712739055202,-1445.14,0.00021026,2]
[322066691,1712739055211,-500.0,0.00021026,2]
[322066692,1712739055220,-500.0,0.00021026,2]
[322066693,1712739055230,-753.45,0.00021026,2]
[322066694,1712739055239,-500.0,0.00021026,2]
[322066695,1712739055249,-500.0,0.00021026,2]
[322066696,1712739055258,-500.0,0.00021026,2]
[322066697,1712739055267,-500.0,0.00021026,2]
[322066698,1712739055277,-4935.81,0.00021026,2]
[322066699,1712739055286,-500.0,0.00021026,2]
[322066700,1712739055295,-728.63,0.00021026,2]
[322066701,1712739055305,-500.0,0.00021026,2]
[322066702,1712739055315,-545.78,0.00021026,2]
[322066703,1712739055324,-500.0,0.00021026,2]
[322066704,1712739055333,-500.0,0.00021026,2]
[322066705,1712739055342,-500.0,0.00021026,2]
[322066706,1712739055352,-369.44011364,0.00021026,2]
[322066707,1712739055361,-500.0,0.00021026,2]
[322066708,1712739055370,-500.0,0.00021026,2]
[322066709,1712739055380,-934.77,0.00021026,2]
[322066710,1712739055389,-500.0,0.00021026,2]
[322066711,1712739055399,-500.0,0.00021026,2]
[322066712,1712739055408,-537.35,0.00021026,2]
[322066713,1712739055418,-515.08,0.00021026,2]
[322066714,1712739055427,-454.82966811,0.00021026,2]
[322066715,1712739055436,-500.0,0.00021026,2]
[322066716,1712739055445,-631.39,0.00021026,2]
[322066717,1712739055454,-2573.74,0.00021026,2]
[322066718,1712739055463,-500.0,0.00021026,2]
[322066719,1712739055472,-632.78,0.00021026,2]
[322066720,1712739055481,-500.0,0.00021026,2]
[322066721,1712739055490,-500.0,0.00021026,2]
[322066722,1712739055499,-857.64,0.00021026,2]
[322066723,1712739055508,-500.0,0.00021026,2]
[322066724,1712739055517,-500.0,0.00021026,2]
[322066725,1712739055526,-274.5279938,0.00021026,2]
[322066726,1712739055535,-500.0,0.00021026,2]
[322066727,1712739055544,-526.43,0.00021026,2]
[322066728,1712739055553,-500.0,0.00021026,2]
[322066729,1712739055562,-710.81,0.00021026,2]
[322066730,1712739055572,-500.0,0.00021026,2]
[322066731,1712739055581,-753.09,0.00021026,2]
[322066732,1712739055589,-500.0,0.00021026,2]
[322066733,1712739055599,-500.0,0.00021026,2]
[322066734,1712739055608,-500.0,0.00021026,2]
[322066735,1712739055617,-500.0,0.00021026,2]
[322066736,1712739055626,-1404.33,0.00021026,2]
[322066737,1712739055635,-500.0,0.00021026,2]
[322066738,1712739055645,-500.0,0.00021026,2]
[322066739,1712739055654,-500.0,0.00021026,2]
[322066740,1712739055663,-500.0,0.00021026,2]
[322066741,1712739055673,-627.71,0.00021026,2]
[322066742,1712739055682,-500.0,0.00021026,2]
[322066743,1712739055691,-1405.94,0.00021026,2]
[322066744,1712739055701,-530.64,0.00021026,2]
[322066745,1712739055710,-500.0,0.00021026,2]
[322066746,1712739055719,-230.447379,0.00021096,2]
[322066747,1712739055728,-802.49,0.00021102,2]
[322066748,1712739055739,-1567.52,0.00021102,2]
[322066749,1712739055750,-500.0,0.00021102,2]
[322066750,1712739055759,-500.0,0.00021102,2]
[322066751,1712739055769,-500.0,0.00021102,2]
[322066752,1712739055778,-500.0,0.00021102,2]
[322066753,1712739055789,-500.0,0.00021102,2]
[322066754,1712739055798,-500.0,0.00021102,2]
[322066755,1712739055807,-500.0,0.00021102,2]
[322066756,1712739055817,-500.0,0.00021102,2]
[322066757,1712739055867,-500.0,0.00021102,2]
[322066758,1712739055877,-500.0,0.00021102,2]
[322066759,1712739055888,-1177.39,0.00021102,2]
[322066760,1712739055898,-996.62,0.00021102,2]
[322066761,1712739055909,-6692.18,0.00021102,2]
[322066762,1712739055919,-1135.82,0.00021102,2]
[322066763,1712739055929,-500.0,0.00021102,2]
[322066764,1712739055939,-973.83,0.00021102,2]
[322066765,1712739055950,-10415.18,0.00021102,2]
[322066766,1712739055960,-500.0,0.00021102,2]
[322066767,1712739055969,-500.0,0.00021102,2]
[322066768,1712739055980,-500.0,0.00021102,2]
[322066769,1712739055990,-652.83263,0.0002123,2]
[322066770,1712739056000,-949.47113826,0.00021282,2]
[322066771,1712739056010,-500.0,0.00021299,2]
[322066772,1712739056020,-500.0,0.00021299,2]
[322066773,1712739056030,-500.0,0.00021299,2]
[322066774,1712739056040,-500.0,0.00021299,2]
[322066775,1712739056096,-500.0,0.00021299,2]
[322066776,1712739056105,-500.0,0.00021299,2]
[322066777,1712739056116,-500.0,0.00021299,2]
[322066778,1712739056125,-500.0,0.00021299,2]
[322066779,1712739056136,-183.91628168,0.00021299,2]
[322066780,1712739056146,-500.0,0.00021299,2]
[322066781,1712739056156,-427.96263263,0.00021299,2]
[322066782,1712739056168,-946.69,0.00021299,2]
[322066783,1712739056177,-1419.29,0.00021299,2]
[322066784,1712739056188,-500.0,0.00021299,2]
[322066785,1712739056197,-500.0,0.00021299,2]
[322066786,1712739056207,-500.0,0.00021299,2]
[322066787,1712739056216,-625.16,0.00021299,2]
[322066788,1712739056225,-500.0,0.00021299,2]
[322066789,1712739056235,-1482.35,0.00021299,2]
[322066790,1712739056244,-500.0,0.00021299,2]
[322066791,1712739056254,-500.0,0.00021299,2]
[322066792,1712739056264,-861.14,0.00021299,2]
[322066793,1712739056274,-500.0,0.00021299,2]
[322066794,1712739056283,-500.0,0.00021299,2]
[322066795,1712739056293,-528.57,0.00021299,2]
[322066796,1712739056302,-2120.71,0.00021299,2]
[322066797,1712739056312,-500.0,0.00021299,2]
[322066798,1712739056321,-552.2,0.00021299,2]
[322066799,1712739056331,-500.0,0.00021299,2]
[322066800,1712739056340,-2408.96,0.00021299,2]
[322066801,1712739056350,-1276.57,0.00021299,2]
[322066802,1712739056359,-1217.14,0.00021299,2]
[322066803,1712739056369,-2123.86,0.00021299,2]
[322066804,1712739056378,-511.31,0.00021299,2]
[322066805,1712739056387,-572.02,0.00021299,2]
[322066806,1712739056397,-500.0,0.00021299,2]
[322066807,1712739056406,-742.1,0.00021299,2]
[322066808,1712739056416,-1137.02,0.00021299,2]
[322066809,1712739056426,-500.0,0.00021299,2]
[322066810,1712739056436,-1754.38,0.00021299,2]
[322066811,1712739056446,-500.0,0.00021299,2]
[322066812,1712739056455,-984.81,0.00021299,2]
[322066813,1712739056464,-500.0,0.00021299,2]
[322066814,1712739056474,-500.0,0.00021299,2]
[322066815,1712739056483,-612.58,0.00021299,2]
[322066816,1712739056493,-619.53,0.00021299,2]
[322066817,1712739056502,-500.0,0.00021299,2]
[322066818,1712739056512,-500.0,0.00021299,2]
[322066819,1712739056522,-530.44,0.00021299,2]
[322066820,1712739056531,-1083.32,0.00021299,2]
[322066821,1712739056541,-500.0,0.00021299,2]
[322066822,1712739056551,-765.23,0.00021299,2]
[322066823,1712739056561,-500.0,0.00021299,2]
[322066824,1712739056572,-500.0,0.00021299,2]
[322066825,1712739056582,-1986.39,0.00021299,2]
[322066826,1712739056591,-521.75,0.00021299,2]
[322066827,1712739056600,-500.0,0.00021299,2]
[322066828,1712739056609,-500.0,0.00021299,2]
[322066829,1712739056618,-500.0,0.00021299,2]
[322066830,1712739056626,-500.0,0.00021299,2]
[322066831,1712739056635,-500.0,0.00021299,2]
[322066832,1712739056644,-500.0,0.00021299,2]
[322066833,1712739056654,-774.63,0.00021299,2]
[322066834,1712739056663,-1362.67,0.00021299,2]
[322066835,1712739056672,-500.0,0.00021299,2]
[322066836,1712739056681,-3704.96,0.00021299,2]
[322066837,1712739056690,-500.0,0.00021299,2]
[322066838,1712739056699,-500.0,0.00021299,2]
[322066839,1712739056709,-500.0,0.00021299,2]
[322066840,1712739056718,-500.0,0.00021299,2]
[322066841,1712739056727,-500.0,0.00021299,2]
[322066842,1712739056736,-500.0,0.00021299,2]
[322066843,1712739056748,-500.0,0.000213,2]
[322066844,1712739056757,-500.0,0.000213,2]
[322066845,1712739056766,-500.0,0.000213,2]
[322066846,1712739056775,-500.0,0.000213,2]
[322066847,1712739056785,-500.0,0.000213,2]
[322066848,1712739056794,-500.0,0.000213,2]
[322066849,1712739056803,-500.0,0.000213,2]
[322066850,1712739056811,-500.0,0.000213,2]
[322066851,1712739056821,-570.79,0.000213,2]
[322066852,1712739056831,-500.0,0.000213,2]
[322066853,1712739056840,-500.0,0.000213,2]
[322066854,1712739056849,-500.0,0.000213,2]
[322066855,1712739056858,-500.0,0.000213,2]
[322066856,1712739056867,-500.0,0.000213,2]
[322066857,1712739056876,-500.0,0.000213,2]
[322066858,1712739056887,-613.93,0.000213,2]
[322066859,1712739056897,-500.0,0.000213,2]
[322066860,1712739056908,-500.0,0.000213,2]
[322066861,1712739056920,-500.0,0.000213,2]
[322066862,1712739056932,-500.0,0.000213,2]
[322066863,1712739056943,-578.03,0.000213,2]
[322066864,1712739056956,-500.0,0.000213,2]
[322066865,1712739056966,-500.0,0.000213,2]
[322066866,1712739056976,-934.61,0.000213,2]
[322066867,1712739056987,-500.0,0.000213,2]
[322066868,1712739056998,-417.41693035,0.000213,2]
[322066869,1712739057009,-150.0,0.000213,2]
[322066870,1712739057019,-500.0,0.000213,2]
[322066871,1712739057030,-500.0,0.000213,2]
[322066872,1712739057041,-616.26,0.000213,2]
[322066873,1712739057051,-887.99,0.000213,2]
[322066874,1712739057062,-548.96,0.000213,2]
[322066875,1712739057072,-500.0,0.000213,2]
[322066876,1712739057082,-898.59,0.000213,2]
[322066877,1712739057092,-500.0,0.000213,2]
[322066878,1712739057104,-500.0,0.000213,2]
[322066879,1712739057114,-521.83691745,0.000213,2]
[322066880,1712739057123,-500.0,0.000213,2]
[322066881,1712739057133,-711.11,0.000213,2]
[322066882,1712739057142,-349.89224137,0.000213,2]
[322066883,1712739057153,-683.32,0.000213,2]
[322066884,1712739057163,-500.0,0.000213,2]
[322066885,1712739057173,-519.48,0.000213,2]
[322066886,1712739057183,-500.0,0.000213,2]
[322066887,1712739057194,-500.0,0.000213,2]
[322066888,1712739057203,-626.89,0.000213,2]
[322066889,1712739057214,-964.25,0.000213,2]
[322066890,1712739057223,-500.0,0.000213,2]
[322066891,1712739057233,-500.0,0.000213,2]
[322066892,1712739057242,-500.0,0.000213,2]
[322066893,1712739057251,-500.0,0.000213,2]
[322066894,1712739057262,-500.0,0.000213,2]
[322066895,1712739057271,-671.33,0.000213,2]
[322066896,1712739057281,-508.86,0.000213,2]
[322066897,1712739057291,-500.0,0.000213,2]
[322066898,1712739057302,-547.4,0.000213,2]
[322066899,1712739057311,-500.0,0.000213,2]
[322066900,1712739057321,-500.0,0.000213,2]
[322066901,1712739057332,-529.97,0.000213,2]
[322066902,1712739057341,-500.0,0.000213,2]
[322066903,1712739057354,-565.15,0.000213,2]
[322066904,1712739057364,-1021.16,0.000213,2]
[322066905,1712739057374,-887.08,0.000213,2]